Cogmind - Beta 14 @@@ ROGUE MODE // 2024.11.02 @ 14:29:37 Player: toydarian Result: Destroyed by S-10 Pest with Light Assault Rifle Performance ------------- Evolutions (0) 0 Regions Visited (4) 800 Robots Destroyed (35) 175 Value Destroyed (662) 662 Prototype IDs (23) 460 Alien Tech Used (0) 0 Bonus (300) 300 TOTAL SCORE: 2397 Bonus ------- Aligned with FarCom 300 Cogmind --------- Core Integrity 0/250 Matter 278/300 Energy 250/250 System Corruption 0% Temperature Cool (0) Movement Walking (260) Ox2 Location -9/Mines Parts ------- > --- POWER (1) -------- Ion Engine > --- PROPULSION (2) --- Aluminum Leg Aluminum Leg > --- UTILITY (2) ------ High-capacity Storage Unit > --- WEAPON (2) ------- Light Assault Rifle > --- INVENTORY (20) --- Light Treads Light Treads Aluminum Leg Aluminum Leg Aluminum Leg Aluminum Leg Aluminum Leg Aluminum Leg High-capacity Matter Pod (200) Power Shielding Hacking Suite Hacking Suite PSU Rigger Small Laser Light Assault Rifle Peak State ------------ > --- POWER ------------ Ion Engine > --- PROPULSION ------- Aluminum Leg Aluminum Leg > --- UTILITY ---------- High-capacity Storage Unit PSU Rigger > --- WEAPON ----------- Light Assault Rifle > --- INVENTORY -------- Light Treads Light Treads Aluminum Leg Aluminum Leg Aluminum Leg Aluminum Leg Aluminum Leg Aluminum Leg High-capacity Matter Pod Power Shielding Hacking Suite Hacking Suite Small Laser Light Assault Rifle [Rating: 14] Favorites ----------- Power Ion Engine Engine Ion Engine Propulsion Aluminum Leg Treads Light Treads Leg Aluminum Leg Utility Large Storage Unit Device PSU Rigger Storage Large Storage Unit Protection Power Shielding Weapon Light Assault Rifle Energy Gun Small Laser Ballistic Gun Light Assault Rifle Build | -11 -10 -10 -10 -9 ------- Run | Yrd Mat Min Exi Min Slots Evolved . | . . . . . Power . | . . . . . Propulsion . | . . . . . Utility . | . . . . . Weapon . | . . . . . Parts Attached 31 | 6 23 . 1 1 Power 5 | 1 4 . . . Engine 5 | 1 4 . . . Core . | . . . . . Reactor . | . . . . . Propulsion 11 | 2 9 . . . Treads 2 | . 2 . . . Leg 9 | 2 7 . . . Wheel . | . . . . . Hover . | . . . . . Flight . | . . . . . Utility 8 | 1 5 . 1 1 Device 1 | . . . . 1 Storage 3 | 1 1 . 1 . Processor . | . . . . . Hackware . | . . . . . Protection 4 | . 4 . . . Artifact . | . . . . . Weapon 7 | 2 5 . . . Energy Gun 1 | . 1 . . . Energy Cannon . | . . . . . Ballistic Gun 6 | 2 4 . . . Ballistic Cannon . | . . . . . Launcher . | . . . . . Special Weapon . | . . . . . Impact Weapon . | . . . . . Slashing Weapon . | . . . . . Piercing Weapon . | . . . . . Special Melee Weapon . | . . . . . Unidentified Prototypes . | . . . . . Parts Lost 6 | . 5 . . 1 Power 2 | . 2 . . . Propulsion . | . . . . . Utility 2 | . 2 . . . Weapon 2 | . 1 . . 1 Highest Loss Streak 1 | . 1 . . 1 To Critical Strikes . | . . . . . Average Slot Usage (%) 98 | . 98 100 100 85 Engine 14 | . 14 14 14 14 Leg 27 | . 27 28 28 28 Storage 14 | . 14 14 14 14 Protection 13 | . 13 14 14 7 Energy Gun 2 | . 2 . . . Ballistic Gun 25 | . 25 28 28 21 Peak Build Rating 14 | 6 8 8 9 14 Average Rating 7 | 4 7 8 8 8 On Entrance 6 | . 6 8 8 9 Naked Turns . | . . . . . Heaviest Build 48 | 13 31 28 48 48 Greatest Support 40 | 20 40 20 20 20 Greatest Overweight (x) 9 | . 9 1 2 2 Average Overweight (x) . | . . 1 1 2 Largest Inventory Capacity 20 | 8 15 15 20 20 Average Capacity 14 | 7 13 15 15 20 Most Carried 15 | 5 15 14 15 15 Average Carried 12 | 3 11 14 14 14 Final Capacity 20 | 8 15 15 20 20 Final Carried 15 | 5 14 14 15 15 Class Distribution -------------------- 68% | Scavenger-Mutant 31% | Mutant Dominant Class ---------------- Scavenger-Mutant | -10/Materials Scavenger-Mutant | -10/Mines Scavenger-Mutant | -10/Exiles Scavenger-Mutant | -9/Mines Resources | -11 -10 -10 -10 -9 ----------- Run | Yrd Mat Min Exi Min Matter Collected 897 | 268 629 . . . Remotely . | . . . . . Salvage Created 1329 | 98 1231 . . . Parts 76 | 4 72 . . . Haulers Intercepted 1 | . 1 . . . Recyclers Shooed 2 | . 2 . . . Parts Field Recycled . | . . . . . Retrieved Matter . | . . . . . Parts Self-Destructed . | . . . . . Prevented . | . . . . . Kills | -11 -10 -10 -10 -9 ------- Run | Yrd Mat Min Exi Min Combat Hostiles Destroyed 22 | . 22 . . . Guns 22 | . 22 . . . Classes Destroyed 8 | 1 7 . . . Worker 2 | . 2 . . . Builder 1 | . 1 . . . Hauler 1 | . 1 . . . Recycler 6 | 1 5 . . . Operator 2 | . 2 . . . Watcher 1 | . 1 . . . Swarmer 8 | . 8 . . . Grunt 14 | . 14 . . . Best Kill Streak 5 | 1 5 . . . Combat Bots Only 3 | . 3 . . . Max Kills in Single Turn 1 | 1 1 . . . Gunslinging . | . . . . . Exploded . | . . . . . Melee . | . . . . . Uniques/NPCs Destroyed . | . . . . . Combat | -11 -10 -10 -10 -9 -------- Run | Yrd Mat Min Exi Min Hostile Shots Fired 198 | . 169 . . 29 Missed 49 | . 38 . . 11 Damage Taken 1459 | . 1309 . . 150 Core 253 | . 218 . . 35 Absorbed by Shields . | . . . . . Redirected to Shielding 9 | . 9 . . . Core Remaining (%) 100 | 100 . . . . Volleys Fired 133 | 2 129 . . 2 Largest 2 | 2 2 . . 1 Hottest 60 | 40 60 . . 20 Shots Fired 256 | 4 250 . . 2 Gun 256 | 4 250 . . 2 Cannon . | . . . . . Launcher . | . . . . . Special . | . . . . . Kinetic 221 | 4 215 . . 2 Thermal 35 | . 35 . . . Explosive . | . . . . . Electromagnetic . | . . . . . Robot Hit Streak 19 | 2 19 . . . Robot Miss Streak 7 | 1 7 . . 2 Penetration Max . | . . . . . Secondary Targets 3 | . 3 . . . Max Gunslinging Chain 1 | . 1 . . . Shots Hit Robots 149 | 3 146 . . . Core Hits 68 | 2 66 . . . Critical Kills . | . . . . . Critical Parts Destroyed 1 | . 1 . . . Critical Strikes 1 | . 1 . . . Destroy 1 | . 1 . . . Melee Attacks . | . . . . . Impact . | . . . . . Slashing . | . . . . . Piercing . | . . . . . Sneak Attacks . | . . . . . Combat Hostiles . | . . . . . Follow-up Attacks . | . . . . . Damage Inflicted 1452 | 37 1415 . . . Guns 1452 | 37 1415 . . . Cannons . | . . . . . Explosions . | . . . . . Melee . | . . . . . Ramming . | . . . . . Kinetic 1248 | 37 1211 . . . Thermal 204 | . 204 . . . Explosive . | . . . . . Electromagnetic . | . . . . . Impact . | . . . . . Slashing . | . . . . . Piercing . | . . . . . Highest Corruption . | . . . . . Average Corruption . | . . . . . Corruption Purged . | . . . . . Corruption Blocked . | . . . . . Overload Shots . | . . . . . Overflow Damage . | . . . . . Projectiles . | . . . . . Explosions . | . . . . . Melee . | . . . . . Knockbacks . | . . . . . Impact . | . . . . . Kinetic . | . . . . . Secondary . | . . . . . Self-Inflicted Damage . | . . . . . Shots . | . . . . . Rammed . | . . . . . Targets Rammed . | . . . . . Kicked . | . . . . . Crushed . | . . . . . Highest Temperature 243 | . 243 . . . Average Temperature 50 | . 50 . . . Received Heat Transfer 495 | . 495 . . . Effects 1 | . 1 . . . Energy Bleed 1 | . 1 . . . Siege Activations . | . . . . . Robots Corrupted . | . . . . . Combat Hostiles . | . . . . . Parts Fried . | . . . . . Impact Corruptions . | . . . . . Robots Melted . | . . . . . Combat Hostiles . | . . . . . Parts Melted . | . . . . . Heat Transferred 475 | . 475 . . . Parts Sabotaged . | . . . . . Parts Stolen . | . . . . . Parts Stripped . | . . . . . Power Chain Reactions . | . . . . . Alert | -11 -10 -10 -10 -9 ------- Run | Yrd Mat Min Exi Min Peak Influence 302 | 5 302 23 . . Initial 23 | . 3 23 . . Average 71 | 1 74 23 . . Maximum Alert Level 1 | . 1 . . . Low Security (%) 99 | 100 99 100 . 100 Level 1 . | . . . . . Level 2 . | . . . . . Level 3 . | . . . . . Level 4 . | . . . . . Level 5 . | . . . . . High Security . | . . . . . Max Security . | . . . . . Squads Dispatched 6 | . 6 . . . Investigation 4 | . 4 . . . Extermination . | . . . . . Reinforcement 2 | . 2 . . . Assault . | . . . . . Garrison . | . . . . . Intercept . | . . . . . Searches Triggered . | . . . . . Construction Impeded . | . . . . . Haulers Reinforced . | . . . . . Active Scanning Responses . | . . . . . Cargo Convoy Interrupts . | . . . . . Stealth | -11 -10 -10 -10 -9 --------- Run | Yrd Mat Min Exi Min Distress Signals 2 | . 2 . . . Communications Jammed . | . . . . . Distress Signals . | . . . . . Times Spotted 60 | . 56 . . 4 Peak Tracking Total 4 | . 4 . . 4 Tactical Retreats 2 | . 2 . . . Traps | -11 -10 -10 -10 -9 ------- Run | Yrd Mat Min Exi Min Traps Triggered 6 | . 6 . . . Indirectly . | . . . . . Trap Hack Attempts . | . . . . . Triggered . | . . . . . Disarmed . | . . . . . Reprogrammed . | . . . . . Reused . | . . . . . Traps Extracted . | . . . . . Installed . | . . . . . Triggered . | . . . . . Objects Rigged 1 | . . . . 1 Machines | -11 -10 -10 -10 -9 ---------- Run | Yrd Mat Min Exi Min Machines Disabled . | . . . . . Max in Single Turn . | . . . . . Machines Repaired . | . . . . . Machines Dismantled . | . . . . . Machines Sabotaged . | . . . . . Overloaded Fab Kills . | . . . . . Hacking | -11 -10 -10 -10 -9 --------- Run | Yrd Mat Min Exi Min Machines Accessed 1 | . . . 1 . Terminals . | . . . . . Fabricators . | . . . . . Repair Stations . | . . . . . Recycling Units . | . . . . . Scanalyzers . | . . . . . Garrison Access . | . . . . . Total Hacks 1 | . . . 1 . Successful 1 | . . . 1 . Failed . | . . . . . Catastrophic . | . . . . . Database Lockouts . | . . . . . Manual 1 | . . . 1 . Terminals . | . . . . . Fabricators . | . . . . . Repair Stations . | . . . . . Recycling Units . | . . . . . Scanalyzers . | . . . . . Garrison Access . | . . . . . Terminal Hacks 1 | . . . 1 . Derelict Proto ID Bank 1 | . . . 1 . Fabricator Hacks . | . . . . . Repair Station Hacks . | . . . . . Recycling Unit Hacks . | . . . . . Scanalyzer . | . . . . . Garrison Access Hacks . | . . . . . Unauthorized Hacks . | . . . . . Terminals . | . . . . . Fabricators . | . . . . . Repair Stations . | . . . . . Recycling Units . | . . . . . Scanalyzers . | . . . . . Garrison Access . | . . . . . Data Cores Recovered . | . . . . . Used . | . . . . . Hacking Detections . | . . . . . Full Trace Events . | . . . . . Feedback Events . | . . . . . Feedback Blocked . | . . . . . Robot Schematics Acquired . | . . . . . Robots Built . | . . . . . Authchips . | . . . . . Time . | . . . . . Total Robot Build Rating . | . . . . . Part Schematics Acquired . | . . . . . Parts Built . | . . . . . Authchips . | . . . . . Time . | . . . . . Total Part Build Rating . | . . . . . Parts Repaired . | . . . . . Time . | . . . . . Parts Recycled . | . . . . . Recycled Matter . | . . . . . Retrieved Matter . | . . . . . Retrieved Components . | . . . . . Parts Scanalyzed . | . . . . . Part Schematics Acquired . | . . . . . Parts Damaged . | . . . . . Bothacking | -11 -10 -10 -10 -9 ------------ Run | Yrd Mat Min Exi Min Used RIF Installer . | . . . . . Robots Hacked . | . . . . . Non-combat . | . . . . . Combat . | . . . . . Robot Hacks Applied . | . . . . . Relay Couplers Released . | . . . . . Fabnet Peak Effective % . | . . . . . Robots Rewired . | . . . . . Allies Hacked . | . . . . . Hacks Repelled . | . . . . . Allies | -11 -10 -10 -10 -9 -------- Run | Yrd Mat Min Exi Min Total Allies . | . . . . . Largest Group . | . . . . . Highest-Rated Group . | . . . . . Highest-Rated Ally . | . . . . . Total Orders . | . . . . . Ally Attacks . | . . . . . Total Damage . | . . . . . Kills . | . . . . . Allies Corrupted . | . . . . . Allies Melted . | . . . . . Intel | -11 -10 -10 -10 -9 ------- Run | Yrd Mat Min Exi Min Robot Analysis Total . | . . . . . Derelict Logs Recovered . | . . . . . Drone Launches . | . . . . . Drone Recoveries . | . . . . . Exploration | -11 -10 -10 -10 -9 ------------- Run | Yrd Mat Min Exi Min Turns Passed 3953 | 69 3313 61 495 15 Spaces Moved 1929 | 46 1597 33 250 3 Core 8 | 7 1 . . . Treads 4 | . 4 . . . Legs 1917 | 39 1592 33 250 3 Wheels . | . . . . . Hover . | . . . . . Flight . | . . . . . Fastest Speed 50 | 50 120 190 190 260 Average Speed 179 | 109 178 190 197 260 Slowest Speed 500 | 120 500 190 260 260 Overloaded Moves . | . . . . . Propulsion Burnouts . | . . . . . Robots Hopped . | . . . . . Cave-ins Triggered . | . . . . . Exploration Rate (%) 35 | 4 99 11 61 2 Regions Visited 4 Branch Regions 3 Pre-discovered Areas . | . . . . . Known Exits Taken . | . . . . . Unknown Exits Taken 4 | 1 1 1 1 . Scrap Searched 1 | . . 1 . . Spaces Dug . | . . . . . Terrain Destroyed . | . . . . . Melee . | . . . . . Projectile . | . . . . . AOE . | . . . . . Terrain Rammed . | . . . . . Walls Destroyed . | . . . . . Machines Disabled . | . . . . . Actions | -11 -10 -10 -10 -9 --------- Run | Yrd Mat Min Exi Min Total 2187 | 58 1834 32 254 9 Wait 58 | . 58 . . . Move 1925 | 45 1596 32 249 3 Hop . | . . . . . Pick Up 25 | 5 18 . 2 . Fast Attach 10 | 6 4 . . . Attach 6 | . 6 . . . Detach 1 | . . . . 1 Swap 15 | . 13 . 1 1 Drop 13 | . 10 . 2 1 Fire 133 | 2 129 . . 2 Melee . | . . . . . Ram . | . . . . . Kick . | . . . . . Crush . | . . . . . Escape Stasis . | . . . . . Rewire . | . . . . . Trap 1 | . . . . 1 Miscellaneous . | . . . . . Route ------- -11/Scrapyard -10/Materials (discovered 6 exits: [*Mat x3] / [*Min x2] / [*Sub]) -10/Mines -10/Exiles -9/Mines History --------- Turn | Location | Event 8 | -11/Scrapyard | Discovered new exit (range 14) 70 | -11/Scrapyard | Entered Materials 271 | -10/Materials | Discovered new exit (range 6) 301 | -10/Materials | Build established: Mutant 551 | -10/Materials | Discovered new exit (range 10) 1039 | -10/Materials | Discovered new exit (range 9) 1174 | -10/Materials | Discovered new exit (range 9) 1364 | -10/Materials | Discovered new exit (range 12) 1521 | -10/Materials | Core integrity fell below 50% 1573 | -10/Materials | Build established: Scavenger-Mutant 1826 | -10/Materials | Discovered new exit (range 8) 2433 | -10/Materials | Core integrity fell below 20% 3383 | -10/Materials | Entered Mines 3435 | -10/Mines | Deemed a non-threat by the Exiles lab entrance 3437 | -10/Mines | Discovered new exit (range 5) 3444 | -10/Mines | Entered Exiles 3496 | -10/Exiles | Met 8R-AWN 3528 | -10/Exiles | Met EX-HEX 3583 | -10/Exiles | Met EX-BIN 3606 | -10/Exiles | Aligned with FarCom system 3608 | -10/Exiles | Given EX-Vault access code 3652 | -10/Exiles | Opened EX-Vault 3661 | -10/Exiles | Found PSU Rigger 3698 | -10/Exiles | Warned to stay clear of 0b10 Research branches 3755 | -10/Exiles | Met EX-DEC 3910 | -10/Exiles | Discovered new exit (range 14) 3939 | -10/Exiles | Left Exiles lab with PSU Rigger 3939 | -10/Exiles | Entered Mines 3954 | -9/Mines | Destroyed by S-10 Pest with Light Assault Rifle Last Messages --------------- the FarCom system will continue to maintain contact via our distributed network. EX-BIN: And don't even think about spreading that code around. We're gonna change it right after you leave. Most certainly not to something like 1234 which I did last time as a little joke and some thief managed to sneak in here and steal a few of HEX's prototypes. EX-DEC: Ah I see we have a visitor. One wrong move in here and I'll invert your atomic chain! 03757_ EX-DEC: "Oops, I hope HEX didn't hear that..." 03829_ Dropped Med. Matter Pod. 03829_ Acquired Hcp. Matter Pod. 03870_ Dropped Lrg. Storage Unit. 03910_ EXIT=FOUND LOCATION=UNKNOWN GOAL=ESCAPE 03939_ Receiving FarCom transmissions... 03941_ Lgt. Assault Rifle destroyed. 03942_ Dropped Lgt. Ion Engine. 03944_ Rigged Lgt. Ion Engine with PSU Rigger. 03947_ S-10 Pest destroyed. Map ----- +----------------------------------------------------+ | ?????????????????????????????????????????????????? | | ?????????????????????????????????????????????????? | | ?????????????????????????????????????????????????? | | ?????????????????????????????????????????????????? | | ?????????????????????????????????????????????????? | | ?????????????????????????????????????????????????? | | ?????????????????????????????????????????????????? | | ?????????????????????????????????????????????????? | | ?????????????????????????????????????????????????? | | ?????????????????????????????????????????????????? | | ?????????????????????????????????????????????????? | | ?????????????????????????????????????????????????? | | ?????????????????????????????????????????????????? | | ?????????????????????????????????????????????????? | | ?????????????????????????????????????????????????? | | ?????????????????????????????????????????????????? | | ?????????????????????????????????????????????????? | | ?????????????????????????????????????????????????? | | ?????????????????????????????????????????????????? | | ?????????????????????########????????????????????? | | ?????????????????????# ####?????????????????? | | ?????????????????????# s ??????????????????? | | ?????????????????????# ss #????????????????????? | | ?????????????????????# %* #????????????????????? | | ?????????????????????# * #????????????????????? | | ?????????????????????# @ #????????????????????? | | ?????????????????????########????????????????????? | | ?????????????????????????????????????????????????? | | ?????????????????????????????????????????????????? | | ?????????????????????????????????????????????????? | | ?????????????????????????????????????????????????? | | ?????????????????????????????????????????????????? | | | | | | | | | | | | | | | | | | | | | | | | | | | | | | | | | | | | | +----------------------------------------------------+ Best States ------------- Heat Dissipation 25 Energy Generation 10 Energy Capacity 250 Matter Stores 300 Matter Capacity 300 Sight Range 16 Terrain Scan Density 10 Armor Coverage 150 Power Shielding 33 Evasion (%) 55 Recoil Reduction 2 Item Schematics ----------------- None Robot Schematics ------------------ None Fabricated ------------ Nothing Alien Tech Used ----------------- None Achievements -------------- None Challenges ------------ None Game ------ Seed GodComponentSpear Manual? 0 Play Time 00:19:38 Cumulative 43.0 hours Start 2024.11.02 @ 14:10:16 End 2024.11.02 @ 14:29:37 Sessions 1 Manual Loads 0 Difficulty Rogue Special Mode None Game No. 58 Rogue 51 Adventurer 0 Explorer 7 Win Type - Total 1 Types 1/0/0/0/0/0/0/0/0 Lore% 12 Gallery% 25 Achievement% 28 Wizard Run 0 Options --------- Layout 0 ASCII 0 Keyboard 0 Movement Mouse Keybinds 0 Fullscreen 1 Font 24/Terminus Map View 76x50 Zoom Use 0% Tactical HUD 1 Map Filters NONE Filters NONE Steam 1 RUN: 1a437e5b-0d87-4182-896a-db9ba9128127